{"text_format":"1","workbook":"xlsx","n_sheets":4,"sheets":["TabelNama","data","LapData","Lapprog"],"not_rendered":{"charts":0,"images":1,"macros":1,"external_links":0,"defined_names":5,"comments":0,"pivot_tables":1},"unopened":[],"bounds":{"document_bytes":16777216,"sheet_cells":100000,"rows_first":2000,"rows_last":500,"rows_between":2000,"halvings":0,"cell_chars":16384,"cell_head_chars":4096},"cells_cut":0,"cells_raw":0,"read":"whole","date_system":"1900"}

{"sheet":"TabelNama","index":0,"n_rows":54,"n_cols":10,"rows_kept":54,"cut":false,"hidden":false,"merged":[]}
[null,null,"Nama Anggota"]
[null,null,"No","Nama",null,null,null,"thn"]
[null,null,"1","Aisyah",null,null,null,2013]
[null,null,"2","Andriana",null,null,null,2014]
[null,null,"3","Anggita",null,null,null,2015]
[null,null,"4","Anita",null,null,null,2016]
[null,null,"5","Arman",null,null,null,2017]
[null,null,"6","Arwini",null,null,null,2018]
[null,null,"7","Asnah",null,null,null,2019]
[null,null,"8","Dahniah",null,null,null,2020]
[null,null,"9","Damaris Manik",null,null,null,2021]
[null,null,"10","Delmi Simarmata",null,null,null,2022]
[null,null,"11","Desi Nor Maulida",null,null,null,2023]
[null,null,"12","Desy Vikayanti",null,null,null,2024]
[null,null,"13","Dian Wulansari",null,null,null,2025]
[null,null,"14","Djaka Purwanta",null,null,null,2026]
[null,null,"15","Bungsu Wahyu. S",null,null,null,2027]
[null,null,"16","Gusti Ainun Kartini",null,null,null,2028]
[null,null,"17","H. Edi Sutrisno",null,null,null,2029]
[null,null,"18","Suwardi Winata",null,null,null,2030]
[null,null,"19","Mustadi Eko.J",null,null,null,2031]
[null,null,"20","Dupransyah",null,null,null,2032]
[null,null,"21","Dwi Diah Muliati",null,null,null,2033]
[null,null,"22","Endang Astriyani",null,null,null,2034]
[null,null,"23","Ernawati",null,null,null,2035]
[null,null,"24","Fatlinda",null,null,null,2036]
[null,null,"25","Fitria Endah. L.",null,null,null,2037]
[null,null,"26","Fitriani",null,null,null,2038]
[null,null,"27","Fransisca Sulianti",null,null,null,2039]
[null,null,"28","Abdul Wahab",null,null,null,2040]
[null,null,"31","Hadi Wardoyo",null,null,null,2041]
[null,null,"32","Haidah",null,null,null,2042]
[null,null,"33","Hamirah",null,null,null,2043]
[null,null,"34","Henny Herawati",null,null,null,2044]
[null,null,"35","Hermawan",null,null,null,2045]
[null,null,"38","Ida Suhartini",null,null,null,2046]
[null,null,"39","Ideham. J",null,null,null,2047]
[null,null,"43","Kamaruddin Ratuloli",null,null,null,2048]
[null,null,"46","Lisa Winarni",null,null,null,2049]
[null,null,"50","Masitah",null,null,null,2050]
[null,null,"51","Mistini",null,null,null,2051]
[null,null,"53","Muhammad Yusuf",null,null,null,2052]
[null,null,"56","Noorhidayatullah",null,null,null,2053]
[null,null,"58","NurLaelah .S",null,null,null,2054]
[null,null,"60","Ridwan Rizani",null,null,null,2055]
[null,null,"61","Rofiansyah",null,null,null,2056]
[null,null,"62","Rohanah",null,null,null,2057,null," "]
[null,null,"63","Santi",null,null,null,2058]
[null,null,"71","Sulaiman",null,null,null,2059]
[null,null,"72","Syamsinar Bahar",null,null,null,2060]
[null,null,"73","Tri Handayani",null,null,null,2061]
[null,null,"75","Ummi Rosita Dewi"]
[null,null,"76","Wahidah Ulfah"]
[null,null,"77","Winarningsih"]

{"sheet":"data","index":1,"n_rows":8,"n_cols":8,"rows_kept":8,"cut":false,"hidden":false,"merged":[]}
[]
[]
[null,null,null,null,null,null,null," "]
[null,null,null,null,null,null,2014]
[]
[null,"N0","Nama Anggota","Jenis Anggota","Program","Nama Kegiatan","Tanggal Kegiatan","Keterangan"]
[null,1,"Aisyah","Tetap","Reguler","Sosialisasi Ke RT.14","2014-09-14","Selesai"]
[null,2,"Aisyah","Tidak Tetap","Non Reguler","aaaaa","2014-09-14","selesai"]

{"sheet":"LapData","index":2,"n_rows":30,"n_cols":8,"rows_kept":30,"cut":false,"hidden":false,"merged":[[24,4,24,5],[29,4,29,5],[24,6,24,7],[29,6,29,7]]}
[]
[null,"DATA KEGIATAN"]
[null,"ANGGOTA KARANG TARUNA"]
[null,"TAHUN 2013-2014"]
[]
[null,"Nama Anggota :"]
[]
[null,null,"Aisyah"]
[]
[null,"N0","Nama Anggota","Jenis Anggota","Program","Nama Kegiatan","Tanggal Kegiatan","Keterangan"]
[]
[{"$f":"SMALL(IF(x[Nama Anggota]=$C$8,x[N0]),ROW()-ROW($A$11))","v":1},{"$f":"IF(C12=\"\",\"\",B11+1)","v":1},{"$f":"IF(ISNUMBER($A12),INDEX(x[Nama Anggota],$A12),\"\")","v":"Aisyah"},{"$f":"IF(ISNUMBER($A12),INDEX(x[Jenis Anggota],$A12),\"\")","v":"Tetap"},{"$f":"IF(ISNUMBER($A12),INDEX(x[Program],$A12),\"\")","v":"Reguler"},{"$f":"IF(ISNUMBER($A12),INDEX(x[Nama Kegiatan],$A12),\"\")","v":"Sosialisasi Ke RT.14"},{"$f":"IF(ISNUMBER($A12),INDEX(x[Tanggal Kegiatan],$A12),\"\")","v":"2014-09-14"},{"$f":"IF(ISNUMBER($A12),INDEX(x[Keterangan],$A12),\"\")","v":"Selesai"}]
[{"$f":"SMALL(IF(x[Nama Anggota]=$C$8,x[N0]),ROW()-ROW($A$11))","v":2},{"$f":"IF(C13=\"\",\"\",B12+1)","v":2},{"$f":"IF(ISNUMBER($A13),INDEX(x[Nama Anggota],$A13),\"\")","v":"Aisyah"},{"$f":"IF(ISNUMBER($A13),INDEX(x[Jenis Anggota],$A13),\"\")","v":"Tidak Tetap"},{"$f":"IF(ISNUMBER($A13),INDEX(x[Program],$A13),\"\")","v":"Non Reguler"},{"$f":"IF(ISNUMBER($A13),INDEX(x[Nama Kegiatan],$A13),\"\")","v":"aaaaa"},{"$f":"IF(ISNUMBER($A13),INDEX(x[Tanggal Kegiatan],$A13),\"\")","v":"2014-09-14"},{"$f":"IF(ISNUMBER($A13),INDEX(x[Keterangan],$A13),\"\")","v":"selesai"}]
[{"$f":"SMALL(IF(x[Nama Anggota]=$C$8,x[N0]),ROW()-ROW($A$11))","v":{"$error":"#NUM!"}},"",{"$f":"IF(ISNUMBER($A14),INDEX(x[Nama Anggota],$A14),\"\")","v":""},{"$f":"IF(ISNUMBER($A14),INDEX(x[Jenis Anggota],$A14),\"\")","v":""},{"$f":"IF(ISNUMBER($A14),INDEX(x[Program],$A14),\"\")","v":""},{"$f":"IF(ISNUMBER($A14),INDEX(x[Nama Kegiatan],$A14),\"\")","v":""},{"$f":"IF(ISNUMBER($A14),INDEX(x[Tanggal Kegiatan],$A14),\"\")","v":""},{"$f":"IF(ISNUMBER($A14),INDEX(x[Keterangan],$A14),\"\")","v":""}]
[{"$f":"SMALL(IF(x[Nama Anggota]=$C$8,x[N0]),ROW()-ROW($A$11))","v":{"$error":"#NUM!"}},"",{"$f":"IF(ISNUMBER($A15),INDEX(x[Nama Anggota],$A15),\"\")","v":""},{"$f":"IF(ISNUMBER($A15),INDEX(x[Jenis Anggota],$A15),\"\")","v":""},{"$f":"IF(ISNUMBER($A15),INDEX(x[Program],$A15),\"\")","v":""},{"$f":"IF(ISNUMBER($A15),INDEX(x[Nama Kegiatan],$A15),\"\")","v":""},{"$f":"IF(ISNUMBER($A15),INDEX(x[Tanggal Kegiatan],$A15),\"\")","v":""},{"$f":"IF(ISNUMBER($A15),INDEX(x[Keterangan],$A15),\"\")","v":""}]
[{"$f":"SMALL(IF(x[Nama Anggota]=$C$8,x[N0]),ROW()-ROW($A$11))","v":{"$error":"#NUM!"}},"",{"$f":"IF(ISNUMBER($A16),INDEX(x[Nama Anggota],$A16),\"\")","v":""},{"$f":"IF(ISNUMBER($A16),INDEX(x[Jenis Anggota],$A16),\"\")","v":""},{"$f":"IF(ISNUMBER($A16),INDEX(x[Program],$A16),\"\")","v":""},{"$f":"IF(ISNUMBER($A16),INDEX(x[Nama Kegiatan],$A16),\"\")","v":""},{"$f":"IF(ISNUMBER($A16),INDEX(x[Tanggal Kegiatan],$A16),\"\")","v":""},{"$f":"IF(ISNUMBER($A16),INDEX(x[Keterangan],$A16),\"\")","v":""}]
[{"$f":"SMALL(IF(x[Nama Anggota]=$C$8,x[N0]),ROW()-ROW($A$11))","v":{"$error":"#NUM!"}},"",{"$f":"IF(ISNUMBER($A17),INDEX(x[Nama Anggota],$A17),\"\")","v":""},{"$f":"IF(ISNUMBER($A17),INDEX(x[Jenis Anggota],$A17),\"\")","v":""},{"$f":"IF(ISNUMBER($A17),INDEX(x[Program],$A17),\"\")","v":""},{"$f":"IF(ISNUMBER($A17),INDEX(x[Nama Kegiatan],$A17),\"\")","v":""},{"$f":"IF(ISNUMBER($A17),INDEX(x[Tanggal Kegiatan],$A17),\"\")","v":""},{"$f":"IF(ISNUMBER($A17),INDEX(x[Keterangan],$A17),\"\")","v":""}]
[{"$f":"SMALL(IF(x[Nama Anggota]=$C$8,x[N0]),ROW()-ROW($A$11))","v":{"$error":"#NUM!"}},"",{"$f":"IF(ISNUMBER($A18),INDEX(x[Nama Anggota],$A18),\"\")","v":""},{"$f":"IF(ISNUMBER($A18),INDEX(x[Jenis Anggota],$A18),\"\")","v":""},{"$f":"IF(ISNUMBER($A18),INDEX(x[Program],$A18),\"\")","v":""},{"$f":"IF(ISNUMBER($A18),INDEX(x[Nama Kegiatan],$A18),\"\")","v":""},{"$f":"IF(ISNUMBER($A18),INDEX(x[Tanggal Kegiatan],$A18),\"\")","v":""},{"$f":"IF(ISNUMBER($A18),INDEX(x[Keterangan],$A18),\"\")","v":""}]
[{"$f":"SMALL(IF(x[Nama Anggota]=$C$8,x[N0]),ROW()-ROW($A$11))","v":{"$error":"#NUM!"}},"",{"$f":"IF(ISNUMBER($A19),INDEX(x[Nama Anggota],$A19),\"\")","v":""},{"$f":"IF(ISNUMBER($A19),INDEX(x[Jenis Anggota],$A19),\"\")","v":""},{"$f":"IF(ISNUMBER($A19),INDEX(x[Program],$A19),\"\")","v":""},{"$f":"IF(ISNUMBER($A19),INDEX(x[Nama Kegiatan],$A19),\"\")","v":""},{"$f":"IF(ISNUMBER($A19),INDEX(x[Tanggal Kegiatan],$A19),\"\")","v":""},{"$f":"IF(ISNUMBER($A19),INDEX(x[Keterangan],$A19),\"\")","v":""}]
[{"$f":"SMALL(IF(x[Nama Anggota]=$C$8,x[N0]),ROW()-ROW($A$11))","v":{"$error":"#NUM!"}},{"$f":"IF(C20=\"\",\"\",B19+1)","v":""},{"$f":"IF(ISNUMBER($A20),INDEX(x[Nama Anggota],$A20),\"\")","v":""},{"$f":"IF(ISNUMBER($A20),INDEX(x[Jenis Anggota],$A20),\"\")","v":""},{"$f":"IF(ISNUMBER($A20),INDEX(x[Program],$A20),\"\")","v":""},{"$f":"IF(ISNUMBER($A20),INDEX(x[Nama Kegiatan],$A20),\"\")","v":""},{"$f":"IF(ISNUMBER($A20),INDEX(x[Tanggal Kegiatan],$A20),\"\")","v":""},{"$f":"IF(ISNUMBER($A20),INDEX(x[Keterangan],$A20),\"\")","v":""}]
[{"$f":"SMALL(IF(x[Nama Anggota]=$C$8,x[N0]),ROW()-ROW($A$11))","v":{"$error":"#NUM!"}},{"$f":"IF(C21=\"\",\"\",B20+1)","v":""},{"$f":"IF(ISNUMBER($A21),INDEX(x[Nama Anggota],$A21),\"\")","v":""},{"$f":"IF(ISNUMBER($A21),INDEX(x[Jenis Anggota],$A21),\"\")","v":""},{"$f":"IF(ISNUMBER($A21),INDEX(x[Program],$A21),\"\")","v":""},{"$f":"IF(ISNUMBER($A21),INDEX(x[Nama Kegiatan],$A21),\"\")","v":""},{"$f":"IF(ISNUMBER($A21),INDEX(x[Tanggal Kegiatan],$A21),\"\")","v":""},{"$f":"IF(ISNUMBER($A21),INDEX(x[Keterangan],$A21),\"\")","v":""}]
[]
[]
[]
[null,null,"Pemegang program",null,"PPTK",null,"Kepala Puskesmas"]
[]
[]
[]
[]
[null,null,"Djaka Purwanta,A.Md",null,"=                                                 =",null,"=                                                   ="]

{"sheet":"Lapprog","index":3,"n_rows":11,"n_cols":8,"rows_kept":11,"cut":false,"hidden":false,"merged":[]}
[]
[null,"DATA KEGIATAN"]
[null,"ANGGOTA KARANG TARUNA"]
[null,"TAHUN 2013-2014"]
[]
[]
[null,"Program","Reguler"]
[]
[null,"N0","Nama Anggota","Jenis Anggota","Nama Kegiatan","Tanggal Kegiatan","Keterangan","Total Program"]
[null,1,"Aisyah","Tetap","Sosialisasi Ke RT.14","2014-09-14","Selesai",1]
[null,"Grand Total",null,null,null,null,null,1]